fUSD/lending_fUSD_20250628
["ID","MTS","AMOUNT","RATE_DAILY","PERIOD"]
[368271217,1751082670788,-490.0,0.00045753,60]
[368271218,1751082670804,-490.0,0.00045753,60]
[368271219,1751082670819,-490.0,0.00045753,60]
[368271220,1751082670833,-490.0,0.00045753,60]
[368271221,1751082670848,-490.0,0.00045753,60]
[368271222,1751082670863,-490.0,0.00045753,60]
[368271223,1751082670879,-490.0,0.00045753,60]
[368271224,1751082670894,-537.54908015,0.00045753,60]
[368271225,1751082670909,-490.0,0.00045753,60]
[368271226,1751082670924,-490.0,0.00045753,60]
[368271227,1751082670939,-490.0,0.00045753,60]
[368271228,1751082670954,-490.0,0.00045753,60]
[368271229,1751082670970,-225.86128716,0.00045753,60]
[368271230,1751082670985,-490.0,0.00045753,60]
[368271231,1751082671000,-490.0,0.00045753,60]
[368271232,1751082671014,-490.0,0.00045753,60]
[368271233,1751082671029,-792.14,0.00045753,60]
[368271234,1751082671045,-490.0,0.00045753,60]
[368271235,1751082671059,-490.0,0.00045753,60]
[368271236,1751082671074,-490.0,0.00045753,60]
[368271237,1751082671088,-490.0,0.00045753,60]
[368271238,1751082671103,-612.86,0.00045753,60]
[368271239,1751082671117,-490.0,0.00045753,60]
[368271240,1751082671131,-490.0,0.00045753,60]
[368271241,1751082671146,-531.29,0.00045753,60]
[368271242,1751082671162,-490.0,0.00045753,60]
[368271243,1751082671176,-555.857027,0.00045753,14]
[368271244,1751082671191,-490.0,0.00045753,60]
[368271245,1751082671206,-490.0,0.00045753,60]
[368271246,1751082671369,-490.0,0.00045753,60]
[368271247,1751082671386,-555.857022,0.00045753,14]
[368271248,1751082671395,-490.0,0.00045753,60]
[368271249,1751082671405,-490.0,0.00045753,60]
[368271250,1751082671415,-490.0,0.00045753,60]
[368271251,1751082671425,-490.0,0.00045753,60]
[368271252,1751082671434,-490.0,0.00045753,60]
[368271253,1751082671443,-490.0,0.00045753,60]
[368271254,1751082671453,-490.0,0.00045753,60]
[368271255,1751082671462,-490.0,0.00045753,60]
[368271256,1751082671471,-490.0,0.00045753,60]
[368271257,1751082671481,-542.6,0.00045753,60]
[368271258,1751082671491,-490.0,0.00045753,60]
[368271259,1751082671500,-490.0,0.00045753,60]
[368271260,1751082671510,-490.0,0.00045753,60]
[368271261,1751082671519,-490.0,0.00045753,60]
[368271262,1751082671528,-490.0,0.00045753,60]
[368271263,1751082671537,-490.0,0.00045753,60]
[368271264,1751082671547,-490.0,0.00045753,60]
[368271265,1751082671556,-490.0,0.00045753,60]
[368271266,1751082671565,-963.8,0.00045753,60]
[368271267,1751082671574,-490.0,0.00045753,60]
[368271268,1751082671583,-490.0,0.00045753,60]
[368271269,1751082671593,-490.0,0.00045753,60]
[368271270,1751082671602,-490.0,0.00045753,60]
[368271271,1751082671611,-642.24,0.00045753,60]
[368271272,1751082671620,-490.0,0.00045753,60]
[368271273,1751082671629,-300.0,0.00045753,60]
[368271274,1751082671638,-638.23321589,0.00045753,60]
[368271275,1751082671647,-490.0,0.00045753,60]
[368271276,1751082671657,-490.0,0.00045753,60]
[368271277,1751082671666,-490.0,0.00045753,60]
[368271278,1751082671675,-490.0,0.00045753,60]
[368271279,1751082671684,-595.69,0.00045753,60]
[368271280,1751082671694,-606.52,0.00045753,60]
[368271281,1751082671703,-490.0,0.00045753,60]
[368271282,1751082671712,-490.0,0.00045753,60]
[368271283,1751082671723,-1086.71,0.00045753,60]
[368271284,1751082671733,-500.0,0.00045753,60]
[368271285,1751082671742,-575.72134679,0.00045753,60]
[368271286,1751082671751,-490.0,0.00045753,60]
[368271287,1751082671761,-1061.08,0.00045753,60]
[368271288,1751082671770,-695.58,0.00045753,60]
[368271289,1751082671780,-490.0,0.00045753,60]
[368271290,1751082671789,-490.0,0.00045753,60]
[368271291,1751082671799,-538.59016685,0.00045753,60]
[368271292,1751082671808,-490.0,0.00045753,60]
[368271293,1751082671822,-490.0,0.00045753,60]
[368271294,1751082671832,-1239.63,0.00045753,60]
[368271295,1751082671841,-490.0,0.00045753,60]
[368271296,1751082671851,-490.0,0.00045753,60]
[368271297,1751082671860,-155.21187,0.00045753,14]
[368271298,1751082671869,-720.8,0.00045753,60]
[368271299,1751082671879,-490.0,0.00045753,60]
[368271300,1751082671888,-490.0,0.00045753,60]
[368271301,1751082671898,-490.0,0.00045753,60]
[368271302,1751082671908,-490.0,0.00045753,60]
[368271303,1751082671918,-832.43,0.00045753,60]
[368271304,1751082671928,-663.26,0.00045753,60]
[368271305,1751082671937,-718.76,0.00045753,60]
[368271306,1751082671947,-531.73,0.00045753,60]
[368271307,1751082671957,-490.0,0.00045753,60]
[368271308,1751082671967,-495.8,0.00045753,60]
[368271309,1751082671977,-578.618877,0.00045753,60]
[368271310,1751082671987,-1624.9,0.00045753,60]
[368271311,1751082671996,-547.95,0.00045753,60]
[368271312,1751082672005,-490.0,0.00045753,60]
[368271313,1751082672015,-1486.68,0.00045753,60]
[368271314,1751082672024,-532.38,0.00045753,60]
[368271315,1751082672034,-490.0,0.00045753,60]
[368271316,1751082672043,-490.0,0.00045753,60]
[368271317,1751082672053,-490.0,0.00045753,60]
[368271318,1751082672062,-1416.53,0.00045753,60]
[368271319,1751082672072,-490.0,0.00045753,60]
[368271320,1751082672082,-490.0,0.00045753,60]
[368271321,1751082672092,-490.0,0.00045753,60]
[368271322,1751082672102,-2816.51,0.00045753,60]
[368271323,1751082672111,-741.63,0.00045753,60]
[368271324,1751082672121,-457.99,0.00045753,60]
[368271325,1751082672131,-570.57,0.00045753,60]
[368271326,1751082672142,-490.0,0.00045753,60]
[368271327,1751082672152,-1178.77,0.00045753,60]
[368271328,1751082672162,-490.0,0.00045753,60]
[368271329,1751082672172,-752.82,0.00045753,60]
[368271330,1751082672182,-705.56,0.00045753,60]
[368271331,1751082672191,-490.0,0.00045753,60]
[368271332,1751082672201,-490.0,0.00045753,60]
[368271333,1751082672210,-601.38,0.00045753,60]
[368271334,1751082672220,-490.0,0.00045753,60]
[368271335,1751082672231,-327.76220251,0.00045753,60]
[368271336,1751082672241,-1000.0,0.00045753,60]
[368271337,1751082672250,-248.08957983,0.00045753,60]
[368271338,1751082672259,-490.0,0.00045753,60]
[368271339,1751082672269,-490.0,0.00045753,60]
[368271340,1751082672279,-360.96219665,0.00045753,60]
[368271341,1751082672288,-766.0,0.00045753,60]
[368271342,1751082672297,-490.0,0.00045753,60]
[368271343,1751082672307,-1959.61,0.00045753,60]
[368271344,1751082672316,-1475.04,0.00045753,60]
[368271345,1751082672326,-820.32,0.00045753,60]
[368271346,1751082672337,-490.0,0.00045753,60]
[368271347,1751082672347,-707.08,0.00045753,60]
[368271348,1751082672356,-490.0,0.00045753,60]
[368271349,1751082672365,-490.0,0.00045753,60]
[368271350,1751082672375,-490.0,0.00045753,60]
[368271351,1751082672386,-619.72,0.00045753,60]
[368271352,1751082672396,-1010.54,0.00045753,60]
[368271353,1751082672406,-490.0,0.00045753,60]
[368271354,1751082672416,-1073.99,0.00045753,60]
[368271355,1751082672426,-490.0,0.00045753,60]
[368271356,1751082672435,-1067.18,0.00045753,60]
[368271357,1751082672446,-1010.91,0.00045753,60]
[368271358,1751082672456,-1570.28,0.00045753,60]
[368271359,1751082672465,-548.91,0.00045753,60]
[368271360,1751082672474,-490.0,0.00045753,60]
[368271361,1751082672483,-750.13,0.00045753,60]
[368271362,1751082672494,-490.0,0.00045753,60]
[368271363,1751082672504,-490.0,0.00045753,60]
[368271364,1751082672513,-490.0,0.00045753,60]
[368271365,1751082672522,-821.23,0.00045753,60]
[368271366,1751082672532,-1542.99,0.00045753,60]
[368271367,1751082672541,-303.1760587,0.00045753,60]
[368271368,1751082672550,-563.08935564,0.00045753,60]
[368271369,1751082672560,-1177.3,0.00045753,60]
[368271370,1751082672569,-1179.63,0.00045753,60]
[368271371,1751082672578,-529.21,0.00045753,60]
[368271372,1751082672587,-610.66,0.00045753,60]
[368271373,1751082672597,-741.12,0.00045753,60]
[368271374,1751082672606,-1631.32,0.00045753,60]
[368271375,1751082672616,-1097.42,0.00045753,60]
[368271376,1751082672625,-548.15,0.00045753,60]
[368271377,1751082672635,-490.0,0.00045753,60]
[368271378,1751082672644,-479.8112928,0.00045753,60]
[368271379,1751082672653,-490.0,0.00045753,60]
[368271380,1751082672663,-2810.62,0.00045753,60]
[368271381,1751082672672,-562.68,0.00045753,60]
[368271382,1751082672682,-813.63,0.00045753,60]
[368271383,1751082672691,-4339.41,0.00045753,60]
[368271384,1751082672700,-527.70363879,0.00045753,60]
[368271385,1751082672710,-490.0,0.00045753,60]
[368271386,1751082672720,-435.95825764,0.00045753,60]
[368271387,1751082672731,-490.0,0.00045753,60]
[368271388,1751082672741,-490.0,0.00045753,60]
[368271389,1751082672751,-810.18,0.00045753,60]
[368271390,1751082672760,-1527.73,0.00045753,60]
[368271391,1751082672770,-1543.42,0.00045753,60]
[368271392,1751082672780,-3523.62,0.00045753,60]
[368271393,1751082672789,-490.0,0.00045753,60]
[368271394,1751082672798,-962.8,0.00045753,60]
[368271395,1751082672808,-490.0,0.00045753,60]
[368271396,1751082672818,-1516.86,0.00045753,60]
[368271397,1751082672832,-490.0,0.00045753,60]
[368271398,1751082672843,-497.16,0.00045753,60]
[368271399,1751082672854,-490.0,0.00045753,60]
[368271400,1751082672864,-490.0,0.00045753,60]
[368271401,1751082672874,-616.8,0.00045753,60]
[368271402,1751082672886,-490.0,0.00045753,60]
[368271403,1751082672896,-490.0,0.00045753,60]
[368271404,1751082672906,-490.0,0.00045753,60]
[368271405,1751082672916,-1169.16,0.00045753,60]
[368271406,1751082672926,-1767.07,0.00045753,60]
[368271407,1751082672937,-810.46,0.00045753,60]
[368271408,1751082672947,-862.6,0.00045753,60]
[368271409,1751082672958,-497.3,0.00045753,60]
[368271410,1751082672968,-490.0,0.00045753,60]
[368271411,1751082672979,-1075.14,0.00045753,60]
[368271412,1751082672988,-1034.52,0.00045753,60]
[368271413,1751082672999,-558.28,0.00045753,60]
[368271414,1751082673009,-641.55,0.00045753,60]
[368271415,1751082673019,-154.28,0.00045753,60]
[368271416,1751082673028,-999.45,0.00045753,60]
[368271417,1751082673038,-490.0,0.00045753,60]
[368271418,1751082673048,-490.0,0.00045753,60]
[368271419,1751082673058,-803.37,0.00045753,60]
[368271420,1751082673068,-490.0,0.00045753,60]
[368271421,1751082673077,-682.71,0.00045753,60]
[368271422,1751082673087,-786.52,0.00045753,60]
[368271423,1751082673097,-490.0,0.00045753,60]
[368271424,1751082673213,-500.0,0.00045753,120]
[368271425,1751082673226,-490.0,0.00045753,60]
[368271426,1751082673235,-1920.6,0.00045753,60]
[368271427,1751082673245,-1072.62,0.00045753,60]
[368271428,1751082673255,-1312.78,0.00045753,60]
[368271429,1751082673264,-2815.27,0.00045753,60]
[368271430,1751082673273,-723.8,0.00045753,60]
[368271431,1751082673284,-490.0,0.00045753,60]
[368271432,1751082673294,-490.0,0.00045753,60]
[368271433,1751082673304,-1033.45,0.00045753,60]
[368271434,1751082673314,-490.0,0.00045753,60]
[368271435,1751082673324,-2346.56,0.00045753,60]
[368271436,1751082673334,-687.64,0.00045753,60]
[368271437,1751082673344,-678.93,0.00045753,60]
[368271438,1751082673354,-490.0,0.00045753,60]
[368271439,1751082673363,-927.25,0.00045753,60]
[368271440,1751082673377,-747.75,0.00045753,60]
[368271441,1751082673387,-490.0,0.00045753,60]
[368271442,1751082673397,-1025.89,0.00045753,60]
[368271443,1751082673407,-490.0,0.00045753,60]
[368271444,1751082673418,-982.12,0.00045753,60]
[368271445,1751082673427,-1497.8,0.00045753,60]
[368271446,1751082673438,-823.14,0.00045753,60]
[368271447,1751082673448,-490.0,0.00045753,60]
[368271448,1751082673458,-568.53959681,0.00045753,60]
[368271449,1751082673467,-490.0,0.00045753,60]
[368271450,1751082673477,-490.0,0.00045753,60]
[368271451,1751082673486,-10416.89,0.00045753,60]
[368271452,1751082673495,-490.0,0.00045753,60]
[368271453,1751082673505,-940.78,0.00045753,60]
[368271454,1751082673515,-490.0,0.00045753,60]
[368271455,1751082673524,-490.0,0.00045753,60]
[368271456,1751082673533,-490.0,0.00045753,60]
[368271457,1751082673542,-688.66,0.00045753,60]
[368271458,1751082673551,-490.0,0.00045753,60]
[368271459,1751082673560,-490.0,0.00045753,60]
[368271460,1751082673569,-490.0,0.00045753,60]
[368271461,1751082673579,-1596.4,0.00045753,60]
[368271462,1751082673588,-490.0,0.00045753,60]
[368271463,1751082673597,-517.00904236,0.00045753,60]
[368271464,1751082673607,-737.29,0.00045753,60]
[368271465,1751082673616,-490.0,0.00045753,60]
[368271466,1751082673626,-721.19,0.00045753,60]
[368271467,1751082673635,-512.83,0.00045753,60]
[368271468,1751082673644,-656.57,0.00045753,60]
[368271469,1751082673654,-598.56852908,0.00045753,60]
[368271470,1751082673664,-318.39675701,0.00045753,60]
[368271471,1751082673674,-1121.37,0.00045753,60]
[368271472,1751082673683,-490.0,0.00045753,60]
[368271473,1751082673692,-490.0,0.00045753,60]
[368271474,1751082673702,-1360.23,0.00045753,60]
[368271475,1751082673711,-490.0,0.00045753,60]
[368271476,1751082673721,-490.0,0.00045753,60]
[368271477,1751082673730,-490.0,0.00045753,60]
[368271478,1751082673740,-2863.29,0.00045753,60]
[368271479,1751082673750,-490.0,0.00045753,60]
[368271480,1751082673759,-792.2,0.00045753,60]
[368271481,1751082673769,-1395.11,0.00045753,60]
[368271482,1751082673778,-490.0,0.00045753,60]
[368271483,1751082673788,-490.0,0.00045753,60]
[368271484,1751082673797,-804.17,0.00045753,60]
[368271485,1751082673806,-490.0,0.00045753,60]
[368271486,1751082673816,-524.69,0.00045753,60]
[368271487,1751082673825,-490.0,0.00045753,60]
[368271488,1751082673835,-778.19,0.00045753,60]
[368271489,1751082673844,-983.74,0.00045753,60]
[368271490,1751082673853,-490.0,0.00045753,60]
[368271491,1751082673863,-4629.37,0.00045753,60]
[368271492,1751082673873,-1392.7,0.00045753,60]
[368271493,1751082673882,-374.50666835,0.00045753,60]
[368271494,1751082673892,-490.0,0.00045753,60]
[368271495,1751082673901,-490.0,0.00045753,60]
[368271496,1751082673911,-1084.9,0.00045753,60]
[368271497,1751082673920,-490.0,0.00045753,60]
[368271498,1751082673930,-1574.76,0.00045753,60]
[368271499,1751082673940,-1175.66,0.00045753,60]
[368271500,1751082673950,-1138.79,0.00045753,60]
[368271501,1751082673959,-490.0,0.00045753,60]
[368271502,1751082673969,-490.0,0.00045753,60]
[368271503,1751082673981,-490.0,0.00045753,60]
[368271504,1751082673992,-1019.73,0.00045753,60]
[368271505,1751082674002,-490.0,0.00045753,60]
[368271506,1751082674012,-844.38,0.00045753,60]
[368271507,1751082674021,-490.0,0.00045753,60]
[368271508,1751082674030,-776.98,0.00045753,60]
[368271509,1751082674040,-738.84,0.00045753,60]
[368271510,1751082674049,-490.0,0.00045753,60]
[368271511,1751082674058,-563.59921724,0.00045753,60]
[368271512,1751082674069,-490.0,0.00045753,60]
[368271513,1751082674079,-490.0,0.00045753,60]
[368271514,1751082674089,-821.18,0.00045753,60]
[368271515,1751082674099,-1590.48,0.00045753,60]
[368271516,1751082674108,-1128.3,0.00045753,60]
[368271517,1751082674118,-589.0,0.00045753,60]
[368271518,1751082674128,-490.0,0.00045753,60]
[368271519,1751082674137,-490.0,0.00045753,60]
[368271520,1751082674147,-917.49,0.00045753,60]
[368271521,1751082674156,-797.25,0.00045753,60]
[368271522,1751082674166,-490.0,0.00045753,60]
[368271523,1751082674176,-863.15,0.00045753,60]
[368271524,1751082674186,-2576.91,0.00045753,60]
[368271525,1751082674196,-171.90574925,0.00045753,60]
[368271526,1751082674205,-1437.67,0.00045753,60]
[368271527,1751082674215,-490.0,0.00045753,60]
[368271528,1751082674224,-588.24751716,0.00045753,60]
[368271529,1751082674234,-490.0,0.00045753,60]
[368271530,1751082674246,-4726.93,0.00045753,60]
[368271531,1751082674256,-490.0,0.00045753,60]
[368271532,1751082674267,-490.0,0.00045753,60]
[368271533,1751082674278,-490.0,0.00045753,60]
[368271534,1751082674288,-490.0,0.00045753,60]
[368271535,1751082674298,-202.37519434,0.00045753,60]
[368271536,1751082674307,-2001.1,0.00045753,14]
[368271537,1751082674316,-87706.84,0.00045753,60]
[368271538,1751082674325,-591.46,0.00045753,60]
[368271539,1751082674335,-490.0,0.00045753,60]
[368271540,1751082674345,-494.74,0.00045753,60]
[368271541,1751082674356,-856.21,0.00045753,60]
[368271542,1751082674365,-490.0,0.00045753,60]
[368271543,1751082674376,-490.0,0.00045753,60]
[368271544,1751082674387,-1129.72,0.00045753,60]
[368271545,1751082674396,-502.82,0.00045753,60]
[368271546,1751082674406,-2273.84,0.00045753,60]
[368271547,1751082674415,-490.0,0.00045753,60]
[368271548,1751082674425,-1353.33,0.00045753,60]
[368271549,1751082674434,-490.0,0.00045753,60]
[368271550,1751082674444,-2262.29,0.00045753,60]
[368271551,1751082674452,-490.0,0.00045753,60]
[368271552,1751082674462,-490.0,0.00045753,60]
[368271553,1751082674471,-843.07,0.00045753,60]
[368271554,1751082674481,-752.34,0.00045753,60]
[368271555,1751082674490,-490.0,0.00045753,60]
[368271556,1751082674500,-490.0,0.00045753,60]
[368271557,1751082674509,-560.88,0.00045753,60]
[368271558,1751082674519,-490.0,0.00045753,60]
[368271559,1751082674528,-490.0,0.00045753,60]
[368271560,1751082674539,-869.82,0.00045753,60]
[368271561,1751082674549,-490.0,0.00045753,60]
[368271562,1751082674558,-490.0,0.00045753,60]
[368271563,1751082674568,-490.0,0.00045753,60]
[368271564,1751082674577,-899.36,0.00045753,60]
[368271565,1751082674587,-1722.26,0.00045753,60]
[368271566,1751082674596,-325.59217546,0.00045753,60]
[368271567,1751082674606,-1514.11,0.00045753,60]
[368271568,1751082674615,-1113.17,0.00045753,60]
[368271569,1751082674625,-490.0,0.00045753,60]
[368271570,1751082674634,-515.37,0.00045753,60]
[368271571,1751082674644,-490.0,0.00045753,60]
[368271572,1751082674654,-595.41,0.00045753,60]
[368271573,1751082674664,-1179.46,0.00045753,60]
[368271574,1751082674673,-803.93,0.00045753,60]
[368271575,1751082674683,-739.75,0.00045753,60]
[368271576,1751082674693,-2144.44,0.00045753,60]
[368271577,1751082674702,-581.26533883,0.00045753,60]
[368271578,1751082674711,-949.97,0.00045753,60]
[368271579,1751082674721,-1124.86,0.00045753,60]
[368271580,1751082674730,-490.0,0.00045753,60]
[368271581,1751082674739,-553.64,0.00045753,60]
[368271582,1751082674749,-490.0,0.00045753,60]
[368271583,1751082674758,-496.37,0.00045753,60]
[368271584,1751082674767,-490.0,0.00045753,60]
[368271585,1751082674777,-545.98442448,0.00045753,60]
[368271586,1751082674787,-3505.37,0.00045753,60]
[368271587,1751082674795,-490.0,0.00045753,60]
[368271588,1751082674805,-1091.22,0.00045753,60]
[368271589,1751082674815,-699.23,0.00045753,60]
[368271590,1751082674824,-1452.75,0.00045753,60]
[368271591,1751082674834,-490.0,0.00045753,2]
[368271592,1751082674843,-686.97,0.00045753,60]
[368271593,1751082674853,-666.92,0.00045753,60]
[368271594,1751082674862,-846.36,0.00045753,60]
[368271595,1751082674872,-2423.56,0.00045753,60]
[368271596,1751082674882,-295.02874634,0.00045763,120]
[368271597,1751082674892,-172.58802681,0.00045763,120]
[368271598,1751082674902,-2747.16972668,0.00045763,15]
[368271599,1751082674912,-4821.60778517,0.00045763,15]
[368271600,1751082674925,-5977.31381953,0.00045763,2]
[368271601,1751082674936,-4475.61359582,0.00045763,2]
[368271602,1751082674945,-160.44944974,0.00045763,90]
[368271603,1751082674955,-1285.15011629,0.00045763,2]
[368271604,1751082674966,-694.79912028,0.00045773,10]
[368271605,1751082674976,-1500.0,0.000458,16]
[368271606,1751082674985,-600.0,0.00045821,2]
[368271607,1751082674995,-600.0,0.00045821,2]
[368271608,1751082675007,-600.0,0.00045821,2]
[368271609,1751082675017,-553.45056072,0.00045821,2]
[368271610,1751082675026,-399.74648927,0.00045821,2]
[368271611,1751082675036,-600.0,0.00045821,2]
[368271612,1751082675046,-600.0,0.00045821,2]
[368271613,1751082675055,-600.0,0.00045821,2]
[368271614,1751082675065,-600.0,0.00045821,2]
[368271615,1751082675075,-500.25120154,0.00045821,2]
[368271616,1751082675085,-600.0,0.00045821,2]
[368271617,1751082675095,-600.0,0.00045821,2]
[368271618,1751082675104,-600.0,0.00045821,2]
[368271619,1751082675114,-600.0,0.00045821,2]
[368271620,1751082675126,-600.0,0.00045821,2]
[368271621,1751082675135,-600.0,0.00045821,2]
[368271622,1751082675145,-600.0,0.00045821,2]
[368271623,1751082675154,-600.0,0.00045821,2]
[368271624,1751082675164,-600.0,0.00045821,2]
[368271625,1751082675174,-600.0,0.00045821,2]
[368271626,1751082675184,-600.0,0.00045821,2]
[368271627,1751082675193,-600.0,0.00045821,2]
[368271628,1751082675203,-296.37730109,0.00045821,2]
[368271629,1751082675213,-600.0,0.00045821,2]
[368271630,1751082675223,-600.0,0.00045821,2]
[368271631,1751082675232,-600.0,0.00045821,2]
[368271632,1751082675241,-600.0,0.00045821,2]
[368271633,1751082675250,-600.0,0.00045821,2]
[368271634,1751082675259,-600.0,0.00045821,2]
[368271635,1751082675269,-238.55092044,0.00045821,2]
[368271636,1751082675278,-183.62640179,0.00045821,2]
[368271637,1751082675288,-600.0,0.00045821,2]
[368271638,1751082675298,-600.0,0.00045821,2]
[368271639,1751082675307,-600.0,0.00045821,2]
[368271640,1751082675317,-600.0,0.00045821,2]
[368271641,1751082675327,-600.0,0.00045821,2]
[368271642,1751082675337,-600.0,0.00045821,2]
[368271643,1751082675347,-600.0,0.00045821,2]
[368271644,1751082675359,-230.17584108,0.00045821,2]
[368271645,1751082675369,-600.0,0.00045821,2]
[368271646,1751082675379,-500.0,0.00045828,60]
[368271647,1751082675390,-749.99,0.00045828,60]
[368271648,1751082675400,-1421.63,0.00045828,120]
[368271649,1751082675411,-5737.36,0.00045828,120]
[368271650,1751082675422,-568.85,0.00045828,60]
[368271651,1751082675431,-8506.5065346,0.00045829,2]
[368271652,1751082675441,-6619.9365528,0.00045829,2]
[368271653,1751082675451,-95752.6119358,0.00045829,2]
[368271654,1751082675461,-74516.6318508,0.00045829,2]
[368271655,1751082675471,-8994.0022239,0.00045829,2]
[368271656,1751082675480,-7968.1323263,0.00045829,2]
[368271657,1751082675490,-2769.3961015,0.00045829,2]
[368271658,1751082675499,-2461.6040524,0.00045829,2]
[368271659,1751082675510,-500.0,0.00045859,60]
[368271660,1751082675522,-500.0,0.00045859,60]
[368271661,1751082675532,-500.0,0.00045859,60]
[368271662,1751082675543,-500.0,0.00045859,60]
[368271663,1751082675553,-462.25705223,0.00045859,60]
[368271664,1751082675563,-749.99,0.00045859,60]
[368271665,1751082675574,-749.99,0.00045859,60]
[368271666,1751082675584,-749.99,0.00045859,60]
[368271667,1751082675595,-749.99,0.00045859,60]
[368271668,1751082675606,-749.99,0.00045859,60]
[368271669,1751082675616,-749.99,0.00045859,60]
[368271670,1751082675626,-749.99,0.00045859,60]
[368271671,1751082675635,-749.99,0.00045859,60]
[368271672,1751082675644,-749.99,0.00045859,60]
[368271673,1751082675654,-749.99,0.00045859,60]
[368271674,1751082675664,-749.99,0.00045859,60]
[368271675,1751082675673,-750.13917728,0.00045859,60]
[368271676,1751082675683,-1421.63,0.00045859,120]
[368271677,1751082675692,-1421.63,0.00045859,120]
[368271678,1751082675702,-1421.63,0.00045859,120]
[368271679,1751082675711,-1421.63,0.00045859,120]
[368271680,1751082675721,-1421.63,0.00045859,120]
[368271681,1751082675731,-1421.63,0.00045859,120]
[368271682,1751082675740,-1421.63,0.00045859,120]
[368271683,1751082675749,-1421.63,0.00045859,120]
[368271684,1751082675759,-1421.63,0.00045859,120]
[368271685,1751082675768,-1421.63,0.00045859,120]
[368271686,1751082675779,-1421.81775648,0.00045859,120]
[368271687,1751082675791,-5737.36,0.00045859,120]
[368271688,1751082675802,-5737.36,0.00045859,120]
[368271689,1751082675813,-5737.36,0.00045859,120]
[368271690,1751082675825,-5737.36,0.00045859,120]
[368271691,1751082675835,-5737.36,0.00045859,120]
[368271692,1751082675846,-5737.36,0.00045859,120]
[368271693,1751082675857,-5737.36,0.00045859,120]
[368271694,1751082675866,-5737.36,0.00045859,120]
[368271695,1751082675876,-5737.36,0.00045859,120]
[368271696,1751082675886,-5737.45174007,0.00045859,120]
[368271697,1751082675895,-568.85,0.00045859,60]
[368271698,1751082675905,-568.85,0.00045859,60]
[368271699,1751082675914,-568.85,0.00045859,60]
[368271700,1751082675924,-568.85,0.00045859,60]
[368271701,1751082675933,-568.85,0.00045859,60]
[368271702,1751082675943,-568.85,0.00045859,60]
[368271703,1751082675952,-568.85,0.00045859,60]
[368271704,1751082675962,-568.85,0.00045859,60]
[368271705,1751082675971,-568.85,0.00045859,60]
[368271706,1751082675982,-568.93518593,0.00045859,60]
[368271707,1751082675992,-4234725.29,0.0004586,120]
[368271708,1751082676133,-150.0,0.00045863,2]
[368271709,1751082676146,-798.72,0.00045863,30]
[368271710,1751082676158,-462.31,0.00045863,30]
[368271711,1751082676168,-1500.0,0.000459,16]
[368271712,1751082676178,-490.76064736,0.00045902,21]
[368271713,1751082676187,-150.0,0.00045909,2]
[368271714,1751082676197,-270.0,0.00045911,2]
[368271715,1751082676206,-172.58802678,0.00045933,120]
[368271716,1751082676216,-197.96,0.00045995,120]